bitfinex-derivatives/quotes_BTCF0:USTF0_20250416
["timestamp","ask_amount","ask_price","bid_price","bid_amount"]
[1744830572164,0.60005669,84065.0,84064.0,0.1229546]
[1744830572359,0.23925669,84065.0,84064.0,0.1229546]
[1744830572957,0.60005669,84065.0,84064.0,0.1219546]
[1744830573362,0.60005669,84065.0,84064.0,0.1220346]
[1744830573757,0.60005669,84065.0,84064.0,0.1210346]
[1744830573961,0.68095669,84065.0,84064.0,0.1210346]
[1744830574262,0.5606531,84065.0,84064.0,0.1200346]
[1744830577463,0.5616531,84065.0,84064.0,0.1190346]
[1744830578057,0.5606531,84065.0,84064.0,0.1190346]
[1744830578258,0.5616531,84065.0,84064.0,0.1190346]
[1744830578570,0.001,84065.0,84064.0,0.2190346]
[1744830580572,0.118948,84069.0,84068.0,0.1189489]
[1744830580775,0.118948,84069.0,84068.0,0.1289489]
[1744830581163,0.0132916,84072.0,84069.0,0.1189475]
[1744830581360,0.00017842,84073.0,84072.0,0.1189432]
[1744830582965,0.08007842,84073.0,84072.0,0.1189432]
[1744830583665,0.09311069,84073.0,84072.0,0.1189432]
[1744830584075,0.21205249,84073.0,84072.0,0.1189432]
[1744830584569,0.0594758,84067.0,84064.0,0.0595558]
[1744830584765,0.4797531,84065.0,84064.0,0.2679855]
[1744830584964,0.4797531,84065.0,84064.0,0.2679055]
[1744830585175,0.4797531,84065.0,84064.0,0.2679855]
[1744830585674,0.5634531,84065.0,84064.0,0.1190346]
[1744830585875,0.5634531,84065.0,84064.0,0.1189546]
[1744830586071,0.5634531,84065.0,84064.0,0.1190346]
[1744830586275,0.0846,84066.0,84065.0,0.1189531]
[1744830586475,0.14120682,84073.0,84072.0,0.1189432]
[1744830586874,0.02226502,84073.0,84072.0,0.1189432]
[1744830587069,0.00923275,84073.0,84072.0,0.1189432]
[1744830587866,0.00923275,84073.0,84072.0,0.2029432]
[1744830588066,0.00923275,84073.0,84072.0,0.2039432]
[1744830588374,0.00923275,84073.0,84072.0,0.2059432]
[1744830591375,0.00923275,84073.0,84072.0,0.2039432]
[1744830591575,0.00923275,84073.0,84072.0,0.2059432]
[1744830591980,0.00923275,84073.0,84072.0,0.2060232]
[1744830592277,0.09293275,84073.0,84072.0,0.2060232]
[1744830592880,0.21187455,84073.0,84072.0,0.2060232]
[1744830593379,0.21187455,84073.0,84072.0,0.2050232]
[1744830593881,0.21187455,84073.0,84072.0,0.1210232]
[1744830594078,0.21187455,84073.0,84072.0,0.1190232]
[1744830594476,0.21187455,84073.0,84072.0,0.2028232]
[1744830594667,0.29377455,84073.0,84072.0,0.2028232]
[1744830595081,0.29377455,84073.0,84072.0,0.1190232]
[1744830595480,0.17483275,84073.0,84072.0,0.1190232]
[1744830595684,0.29377455,84073.0,84072.0,0.2053232]
[1744830596178,0.29377455,84073.0,84072.0,0.1190232]
[1744830596586,0.29377455,84073.0,84072.0,0.1189432]
[1744830596785,0.29377455,84073.0,84072.0,0.2052432]
[1744830596977,0.29377455,84073.0,84072.0,0.1189432]
[1744830597586,0.29377455,84073.0,84072.0,0.1190232]
[1744830600387,0.0594744,84069.0,84068.0,0.1189482]
[1744830600778,0.1189503,84067.0,84066.0,0.1190597]
[1744830600978,0.1189503,84067.0,84066.0,0.000108]
[1744830601284,0.1189503,84067.0,84066.0,0.1190597]
[1744830601476,0.2850503,84067.0,84066.0,0.1189517]
[1744830601676,0.2850503,84067.0,84066.0,0.1190317]
[1744830601988,0.1661,84067.0,84066.0,0.1190317]
[1744830602180,0.0837,84067.0,84066.0,0.1190317]
[1744830602380,0.2026503,84067.0,84066.0,0.1190317]
[1744830602585,0.2026503,84067.0,84066.0,8e-05]
[1744830602974,0.118956,84063.0,84062.0,0.1784349]
[1744830603181,0.118956,84063.0,84062.0,0.0594786]
[1744830603588,0.0594804,84060.0,84056.0,0.00028642]
[1744830603786,0.4797645,84057.0,84056.0,0.00028642]
[1744830603984,0.4797645,84057.0,84056.0,0.11914432]
[1744830604187,0.4797645,84057.0,84056.0,0.11922432]
[1744830604685,0.4797645,84057.0,84056.0,0.00025842]
[1744830604877,0.4797645,84057.0,84056.0,0.11914432]
[1744830605082,0.4797645,84057.0,84056.0,0.12222432]
[1744830605886,0.4797645,84057.0,84056.0,0.12622432]
[1744830606589,0.0837,84059.0,84058.0,0.118963]
[1744830606889,0.4797546,84064.0,84063.0,0.118956]
[1744830607280,0.2038546,84064.0,84063.0,0.118956]
[1744830607686,0.49033634,84073.0,84064.0,0.1189546]
[1744830607888,0.12953634,84073.0,84072.0,0.1189432]
[1744830608083,0.12953634,84073.0,84072.0,0.5297432]
[1744830608490,0.12048201,84073.0,84072.0,0.5297432]
[1744830608681,0.15077825,84083.0,84082.0,0.1189291]
[1744830608881,8e-05,84087.0,84086.0,0.1189234]
[1744830609086,0.18067652,84093.0,84092.0,0.1189149]
[1744830609287,0.21025795,84094.0,84093.0,0.1189135]
[1744830609499,0.21025795,84094.0,84093.0,0.4321135]
[1744830609702,0.21033795,84094.0,84093.0,1.9321135]
[1744830610397,0.21033795,84094.0,84093.0,1.9321935]
[1744830610690,0.005,84098.0,84097.0,0.1189079]
[1744830610888,0.24047848,84101.0,84100.0,0.1189036]
[1744830611087,0.44188498,84101.0,84100.0,0.1189036]
[1744830611285,0.4509693,84101.0,84100.0,0.1189036]
[1744830611491,0.5323693,84101.0,84100.0,0.1189036]
[1744830611698,0.1189036,84100.0,84099.0,0.08]
[1744830611887,0.1189121,84094.0,84093.0,0.002]
[1744830612087,0.1189121,84094.0,84093.0,0.1209135]
[1744830612292,0.1189121,84094.0,84093.0,0.001]
[1744830612489,0.2828121,84094.0,84093.0,0.001]
[1744830612885,0.0594608,84089.0,84088.0,0.0594601]
[1744830613091,0.2233566,84094.0,84093.0,0.1189935]
[1744830613388,0.0594601,84089.0,84086.0,0.2231613]
[1744830613582,0.1189234,84086.0,84085.0,0.00017842]
[1744830613995,0.2923234,84086.0,84085.0,0.00017842]
[1744830614187,0.5423234,84086.0,84085.0,0.00017842]
[1744830614381,0.5423234,84086.0,84076.0,0.000108]
[1744830614382,0.1189362,84077.0,84076.0,0.000108]
[1744830614596,0.1189461,84070.0,84069.0,0.00511482]
[1744830614890,0.4797461,84070.0,84069.0,0.00511482]
[1744830615095,0.4797461,84070.0,84069.0,0.12406232]
[1744830615690,0.57984491,84070.0,84069.0,0.00519482]
[1744830615892,0.57984491,84070.0,84069.0,0.00511482]
[1744830616085,0.1189574,84062.0,84061.0,0.23382274]
[1744830616286,0.1189574,84062.0,84052.0,0.40931494]
[1744830616287,0.1189701,84053.0,84052.0,0.40931494]
[1744830616487,0.4797701,84053.0,84052.0,0.29034404]
[1744830616684,0.1189829,84044.0,84043.0,0.18634784]
[1744830616885,0.48887168,84044.0,84043.0,0.29469215]
[1744830617197,0.0594955,84039.0,84029.0,0.0595019]
[1744830617397,0.4797999,84032.0,84031.0,0.34984444]
[1744830617698,0.4797999,84032.0,84031.0,0.34992444]
[1744830617897,0.1190098,84025.0,84024.0,0.36087457]
[1744830618191,0.4798098,84025.0,84024.0,0.47988577]
[1744830618795,0.4798098,84025.0,84024.0,0.47996577]
[1744830619094,0.4928791,84025.0,84024.0,0.47996577]
[1744830619395,0.3738693,84025.0,84024.0,0.48296577]
[1744830619894,0.3738693,84025.0,84024.0,0.48496577]
[1744830620598,0.3608,84025.0,84024.0,0.48496577]
[1744830620795,0.3608,84025.0,84024.0,0.48296577]
[1744830621092,0.01320231,84026.0,84025.0,0.1190098]
[1744830621286,0.3608,84028.0,84026.0,0.0595036]
[1744830621491,0.1190084,84026.0,84025.0,0.1981069]
[1744830622488,0.1190084,84026.0,84025.0,0.1981869]
[1744830622885,0.1190084,84026.0,84025.0,0.2001869]
[1744830623090,0.1190084,84026.0,84025.0,0.1210869]
[1744830623296,0.1190084,84026.0,84025.0,0.1220869]
[1744830626294,0.0845,84027.0,84025.0,0.00308]
[1744830626497,0.37371949,84028.0,84027.0,0.1190069]
[1744830626800,0.3608,84028.0,84027.0,0.1190069]
[1744830627199,0.3608,84028.0,84027.0,0.2867069]
[1744830627403,0.3608,84028.0,84027.0,0.3267069]
[1744830628095,0.01299879,84032.0,84031.0,0.1190013]
[1744830628401,0.5260543,84040.0,84032.0,0.1189999]
[1744830628604,0.5260543,84040.0,84032.0,0.2828999]
[1744830628605,0.3608,84040.0,84032.0,0.2828999]
[1744830628803,0.3608,84040.0,84032.0,0.3228999]
[1744830629099,0.01280497,84037.0,84032.0,0.3228999]
[1744830629488,0.01280497,84037.0,84032.0,0.3238999]
[1744830630095,0.01280497,84037.0,84032.0,0.3248999]
[1744830631202,0.01280497,84037.0,84032.0,0.3258999]
[1744830632594,0.0789,84036.0,84032.0,0.3258999]
[1744830632996,0.0789,84036.0,84032.0,0.3238999]
[1744830633197,0.0789,84036.0,84032.0,0.3248999]
[1744830634503,0.0789,84036.0,84032.0,0.3238999]
[1744830634705,0.0789,84036.0,84032.0,0.3258999]
[1744830635402,0.0789,84036.0,84032.0,0.3248999]
[1744830635593,0.1381978,84035.0,84032.0,0.2406999]
[1744830636000,0.1381979,84035.0,84032.0,0.2406999]
[1744830636202,0.11917682,84033.0,84032.0,0.2006999]
[1744830636402,0.47997682,84033.0,84032.0,0.2007799]
[1744830636603,0.47997682,84033.0,84032.0,0.08178]
[1744830636818,0.47997682,84033.0,84032.0,0.00308]
[1744830637000,0.47997682,84033.0,84032.0,0.1219999]
[1744830637311,0.00017842,84033.0,84032.0,0.1200799]
[1744830637504,0.00017842,84033.0,84032.0,0.1310799]
[1744830637902,0.00017842,84033.0,84032.0,0.2905799]
[1744830638299,0.07707842,84033.0,84032.0,0.2905799]
[1744830638500,0.07707842,84033.0,84032.0,0.2795799]
[1744830638501,0.55687682,84033.0,84032.0,0.2795799]
[1744830638706,0.43787842,84033.0,84032.0,0.2795799]
[1744830639010,0.07707842,84033.0,84032.0,0.2814999]
[1744830639405,0.43787842,84033.0,84032.0,0.2804999]
[1744830639709,0.43787842,84033.0,84032.0,0.2805799]
[1744830640405,0.55687682,84033.0,84032.0,0.2805799]
[1744830640612,0.55687682,84033.0,84032.0,0.2012799]
[1744830641008,0.55687682,84033.0,84032.0,0.2011999]
[1744830641209,0.55687682,84033.0,84032.0,0.1190799]
[1744830642402,0.55687682,84033.0,84032.0,0.2042799]
[1744830643106,0.55687682,84033.0,84032.0,0.1190799]
[1744830643314,0.55687682,84033.0,84032.0,8e-05]
[1744830643506,0.1190197,84018.0,84017.0,0.12413908]
[1744830643814,0.1190197,84018.0,84017.0,0.10526378]
[1744830644009,0.1190197,84018.0,84017.0,0.22413908]
[1744830644211,0.2873197,84018.0,84017.0,0.22421908]
[1744830644705,0.2873197,84018.0,84017.0,0.10519798]
[1744830644906,0.2873197,84018.0,84017.0,0.10911798]
[1744830645310,0.5373197,84018.0,84017.0,0.01219798]
[1744830645508,0.0595147,84012.0,84001.0,0.12213848]
[1744830645710,0.0595147,84012.0,83999.0,0.00046255]
[1744830645711,0.49377469,84011.0,84010.0,0.119031]
[1744830645911,0.1683,84011.0,84010.0,0.119031]
[1744830646216,0.2873296,84011.0,84010.0,0.119111]
[1744830646401,0.0595178,84007.0,84005.0,0.1190376]
[1744830646605,0.7078584,84006.0,84005.0,0.1191456]
[1744830646809,0.5888189,84006.0,84005.0,0.1191456]
[1744830647002,0.5888189,84006.0,84005.0,0.2033376]
[1744830647212,0.5888189,84006.0,84005.0,0.2034176]
[1744830647810,0.5908189,84006.0,84005.0,0.2034176]
[1744830648010,0.5918189,84006.0,84005.0,0.2034176]
[1744830648815,0.5918189,84006.0,84005.0,0.1191176]
[1744830649011,0.5918189,84006.0,84005.0,8e-05]
[1744830649217,0.1190438,84001.0,83979.0,0.059537]
[1744830649408,0.1190438,84001.0,83984.0,0.01]
[1744830649409,0.1190664,83985.0,83984.0,0.01]
[1744830649614,0.0595352,83983.0,83980.0,0.2381455]
[1744830649919,0.1290721,83981.0,83980.0,0.1490734]
[1744830650120,0.01,83981.0,83980.0,0.1490734]
[1744830650318,0.01,83981.0,83980.0,0.1491534]
[1744830651121,0.1290721,83981.0,83980.0,0.1551534]
[1744830651327,0.1290721,83981.0,83980.0,0.1591534]
[1744830651621,0.1290721,83981.0,83980.0,0.1590734]
[1744830652223,0.1380059,83981.0,83980.0,0.1591534]
[1744830653725,0.1380059,83981.0,83980.0,0.1291534]
[1744830654418,0.0189338,83981.0,83980.0,0.1291534]
[1744830654724,0.0189338,83981.0,83980.0,0.1491534]
[1744830655323,0.1380059,83981.0,83980.0,0.1491534]
[1744830656127,0.0189338,83981.0,83980.0,0.1491534]
[1744830657215,0.1380059,83981.0,83980.0,0.1491534]
[1744830658431,0.0189338,83981.0,83980.0,0.1491534]
[1744830659414,0.0980338,83981.0,83980.0,0.1491534]
[1744830659615,0.0980338,83981.0,83980.0,0.1291534]
[1744830660022,0.2171059,83981.0,83980.0,0.1291534]
[1744830661232,0.0980338,83981.0,83980.0,0.1291534]
[1744830661618,0.2171059,83981.0,83980.0,0.1291534]
[1744830662326,0.2171059,83981.0,83980.0,0.01008]
[1744830662519,0.2171059,83981.0,83980.0,0.01]
[1744830662719,0.2171059,83981.0,83980.0,0.01008]
[1744830662925,0.2171059,83981.0,83980.0,0.01]
[1744830663131,0.2171059,83981.0,83980.0,0.01008]
[1744830663322,0.2171059,83981.0,83980.0,0.1291535]
[1744830663523,0.2171059,83981.0,83980.0,0.1251535]
[1744830663830,0.2171059,83981.0,83980.0,0.1261535]
[1744830665330,0.2171059,83981.0,83980.0,0.00708]
[1744830666422,0.2171059,83981.0,83950.0,0.3608]
[1744830666423,0.0595495,83963.0,83950.0,0.3608]
[1744830666621,0.1191133,83953.0,83952.0,0.1786626]
[1744830666927,0.4899133,83953.0,83952.0,0.4168626]
[1744830667125,0.4899133,83953.0,83952.0,0.4169426]
[1744830667328,0.4899133,83953.0,83952.0,0.2978366]
[1744830667719,0.3708,83953.0,83952.0,0.2978366]
[1744830667915,0.3708,83953.0,83952.0,0.3048366]
[1744830668121,0.4899118,83953.0,83952.0,0.3048366]
[1744830669226,0.4899118,83953.0,83952.0,0.17208]
[1744830669417,0.0595586,83950.0,83943.0,0.0595607]
[1744830669619,0.1786853,83946.0,83945.0,0.1786779]
[1744830669827,0.4303621,83946.0,83945.0,0.3891779]
[1744830670134,0.01,83946.0,83945.0,0.3892579]
[1744830670835,0.1291218,83946.0,83945.0,0.2701404]
[1744830671023,0.1291218,83946.0,83945.0,0.1935604]
[1744830671228,0.1291218,83946.0,83945.0,0.13408]
[1744830671229,0.2956218,83946.0,83945.0,0.13408]
[1744830671424,0.2956218,83946.0,83945.0,0.134]
[1744830671830,0.2956218,83946.0,83945.0,0.00408]
[1744830672232,0.1191303,83940.0,83939.0,0.00512274]
[1744830672428,0.1191402,83933.0,83932.0,0.1191407]
[1744830672734,0.1191431,83931.0,83930.0,0.1191434]
[1744830673033,0.1191431,83931.0,83930.0,0.05]
[1744830673232,0.1191431,83931.0,83930.0,0.1692245]
[1744830673528,0.2852431,83931.0,83930.0,8e-05]
[1744830673735,0.0595722,83930.0,83926.0,0.0595747]
[1744830673931,0.1191558,83922.0,83921.0,0.0595779]
[1744830674123,0.1191558,83922.0,83921.0,0.3387337]
[1744830674535,0.0828,83923.0,83922.0,0.1191558]
[1744830674732,0.0088735,83931.0,83929.0,0.1191459]
[1744830674948,0.1280174,83931.0,83929.0,0.1191459]
[1744830675246,0.13571715,83930.0,83929.0,0.1191459]
[1744830675436,0.11932315,83930.0,83929.0,0.1191459]
[1744830675842,0.11932315,83930.0,83929.0,0.1192259]
[1744830676038,0.11932315,83930.0,83929.0,0.1191459]
[1744830676239,0.13519837,83930.0,83929.0,0.1192259]
[1744830676446,0.21319837,83930.0,83929.0,0.1192259]
[1744830676648,0.21319837,83930.0,83929.0,0.1202259]
[1744830677149,0.09405387,83930.0,83929.0,0.1212259]
[1744830677348,0.01605387,83930.0,83929.0,0.2010259]
[1744830677951,0.00017865,83930.0,83929.0,0.2710259]
[1744830678141,0.0776,83944.0,83938.0,0.1191331]
[1744830678452,0.0776,83944.0,83943.0,0.119126]
[1744830678660,0.08636445,83944.0,83943.0,0.199126]
[1744830679253,0.20548905,83944.0,83943.0,0.199126]
[1744830679455,0.20548905,83944.0,83943.0,0.281626]
[1744830679747,0.08636445,83944.0,83943.0,0.281626]
[1744830680155,0.20548905,83944.0,83943.0,0.281626]
[1744830680453,0.20848905,83944.0,83943.0,0.281626]
[1744830680846,0.01176445,83944.0,83943.0,0.281626]
[1744830681046,0.01176445,83944.0,83943.0,0.362626]
[1744830681943,0.003,83944.0,83943.0,0.362626]
[1744830682553,0.1221246,83944.0,83943.0,0.362626]
[1744830682854,0.003,83944.0,83943.0,0.362626]
[1744830683055,0.0814,83944.0,83943.0,0.362626]
[1744830683450,0.0784,83944.0,83943.0,0.362626]
[1744830683757,0.20959175,83944.0,83943.0,0.1625]
[1744830684049,0.29139175,83944.0,83943.0,0.08008]
[1744830684245,0.29139175,83944.0,83943.0,8e-05]
[1744830684655,0.1787031,83938.0,83935.0,0.00017865]
[1744830684856,0.479936,83936.0,83935.0,0.05974725]
[1744830685155,0.479936,83936.0,83935.0,0.00017865]
[1744830685353,0.1191544,83923.0,83922.0,0.0811]
[1744830685554,0.1191544,83923.0,83922.0,0.1611]
[1744830685950,0.2843544,83923.0,83922.0,0.16118]
[1744830686255,0.0829,83923.0,83922.0,0.2803358]
[1744830686456,0.00017865,83931.0,83927.0,0.0595742]
[1744830686646,0.3608,83929.0,83928.0,0.3381209]
[1744830686957,0.4799459,83929.0,83928.0,0.3381209]
[1744830688051,0.4809459,83929.0,83928.0,0.3381209]
[1744830688744,0.4809459,83929.0,83928.0,0.3391209]
[1744830688951,0.001,83929.0,83928.0,0.3491209]
[1744830691550,0.0161435,83945.0,83937.0,0.059567]
[1744830691752,0.0794,83950.0,83949.0,0.1191175]
[1744830691959,0.00893619,83950.0,83949.0,0.1191175]
[1744830692253,0.0794,83955.0,83954.0,0.1191104]
[1744830692648,0.00017865,83963.0,83962.0,0.1190991]
[1744830692854,0.005,83968.0,83965.0,0.1190948]
[1744830693159,0.09823415,83966.0,83965.0,0.2590948]
[1744830693661,0.11451364,83966.0,83965.0,0.2590948]
[1744830693864,0.11851364,83966.0,83965.0,0.2590948]
[1744830694254,0.11931309,83970.0,83966.0,0.0595467]
[1744830694464,0.13573968,83970.0,83969.0,0.4798891]
[1744830694759,0.25426485,83970.0,83969.0,0.2690891]
[1744830695061,0.25426485,83970.0,83969.0,0.2691691]
[1744830695252,0.13517715,83970.0,83969.0,0.2691691]
[1744830695459,0.25426485,83970.0,83969.0,0.2691691]
[1744830695757,0.25526485,83970.0,83969.0,0.1291691]
[1744830696153,0.13595176,83970.0,83969.0,0.1191691]
[1744830696351,0.14578668,83970.0,83969.0,0.1191691]
[1744830696853,0.14878668,83970.0,83969.0,0.1191691]
[1744830697057,0.14878668,83970.0,83969.0,0.1190891]
[1744830697362,0.02669898,83970.0,83969.0,0.1191691]
[1744830697558,0.14978668,83970.0,83969.0,0.1191691]
[1744830697959,0.14378668,83970.0,83969.0,0.1191691]
[1744830698160,0.14878668,83970.0,83969.0,0.1191691]
[1744830699456,0.14878668,83970.0,83969.0,8e-05]
[1744830699655,0.14778668,83970.0,83969.0,0.1191691]
[1744830699861,0.14878668,83970.0,83969.0,0.1190891]
[1744830700056,0.02969898,83970.0,83969.0,0.1190891]
[1744830700261,0.02869898,83970.0,83969.0,0.1190891]
[1744830700459,0.14778668,83970.0,83969.0,0.1190891]
[1744830700652,0.14478668,83970.0,83969.0,0.1190891]
[1744830700855,0.14878668,83970.0,83969.0,0.1191691]
[1744830701859,0.03069898,83970.0,83969.0,0.1191691]
[1744830702254,0.02669898,83970.0,83969.0,0.1191691]
[1744830702457,0.02969898,83970.0,83969.0,0.1191691]
[1744830702857,0.02669898,83970.0,83969.0,0.1191691]
[1744830703056,0.14978668,83970.0,83969.0,0.1191691]
[1744830703463,0.14378668,83970.0,83969.0,0.1191691]
[1744830703659,0.14978668,83970.0,83969.0,0.1191691]
[1744830703854,0.14978668,83970.0,83969.0,0.1190891]
[1744830704053,0.14978668,83970.0,83969.0,0.1191691]
[1744830704252,0.30838668,83970.0,83969.0,0.1191691]
[1744830705564,0.18929898,83970.0,83969.0,0.4799691]
[1744830705771,0.18529898,83970.0,83969.0,0.4799691]
[1744830705960,0.18929898,83970.0,83969.0,0.4799691]
[1744830706364,0.18529898,83970.0,83969.0,0.4799691]
[1744830706562,0.18729898,83970.0,83969.0,0.4799691]
[1744830706765,0.18929898,83970.0,83969.0,0.4799691]
[1744830706966,0.30838668,83970.0,83969.0,0.5633691]
[1744830708963,0.30638668,83970.0,83969.0,0.5633691]
[1744830709766,0.10839898,83970.0,83969.0,0.5633691]
[1744830709961,0.004,83970.0,83969.0,0.5633691]
[1744830710162,0.155,83983.0,83982.0,0.1190707]
[1744830710363,0.08433066,83983.0,83982.0,0.1990707]
[1744830710665,0.00913066,83983.0,83982.0,0.1990707]
[1744830710864,0.0752,83989.0,83983.0,0.1190693]
[1744830711065,0.0752,83989.0,83983.0,0.2490693]
[1744830711570,0.11931309,83988.0,83987.0,0.1190636]
[1744830711765,0.11931309,83988.0,83987.0,0.5698636]
[1744830712665,0.14350581,83988.0,83987.0,0.5708636]
[1744830713263,0.13650581,83988.0,83987.0,0.5698636]
[1744830713665,0.00017865,83992.0,83987.0,0.4508]
[1744830713861,0.00017865,83992.0,83991.0,0.1190579]
[1744830714058,0.00017865,83992.0,83991.0,0.2290579]
[1744830715064,0.19753515,83992.0,83991.0,0.2290579]
[1744830715269,0.27733515,83992.0,83991.0,0.1190579]
[1744830715774,0.27733515,83992.0,83991.0,0.1191379]
[1744830716170,0.15827865,83992.0,83991.0,0.1191379]
[1744830716371,0.07947865,83992.0,83991.0,0.1191379]
[1744830716674,0.07947865,83992.0,83991.0,0.2191379]
[1744830716865,0.08147865,83992.0,83991.0,0.2191379]
[1744830717465,0.00017865,83992.0,83991.0,0.2191379]
[1744830718266,0.005,83994.0,83993.0,0.1190551]
[1744830718467,0.005,83994.0,83993.0,0.2290551]
[1744830718667,0.0817,84001.0,84000.0,0.1190452]
[1744830718868,0.0817,84001.0,84000.0,0.5698452]
[1744830719980,0.0867,84001.0,84000.0,0.5698452]
[1744830720476,0.09546534,84001.0,84000.0,0.5698452]
[1744830721070,0.09546534,84001.0,84000.0,0.4798452]
[1744830721370,0.09546534,84001.0,84000.0,0.4799252]
[1744830723681,0.00017865,84009.0,84000.0,0.43798]
[1744830723974,0.14914136,84013.0,84012.0,0.1190282]
[1744830724378,0.005,84020.0,84018.0,0.1190197]
[1744830724579,0.10468,84038.0,84018.0,0.1190197]
[1744830724580,0.10468,84038.0,84029.0,0.1190041]
[1744830724766,0.22525624,84030.0,84029.0,0.1690041]
[1744830725075,0.34425894,84030.0,84029.0,0.1190041]
[1744830725370,0.23437269,84030.0,84029.0,0.1190041]
[1744830725774,0.23437269,84030.0,84029.0,0.2003041]
[1744830725973,0.23225624,84030.0,84029.0,0.2403041]
[1744830726173,0.2388142,84036.0,84035.0,0.1189956]
[1744830726380,0.29828273,84048.0,84045.0,0.1189814]
[1744830726570,0.078,84047.0,84045.0,0.1189814]
[1744830726875,0.078,84047.0,84045.0,0.4797814]
[1744830727079,0.00508,84046.0,84045.0,0.4797814]
[1744830727272,0.02080589,84046.0,84045.0,0.4797814]
[1744830727667,0.00010801,84050.0,84049.0,0.1189758]
[1744830727869,0.00047553,84054.0,84053.0,0.1189701]
[1744830728074,0.0786,84065.0,84063.0,0.118956]
[1744830728274,0.059476,84068.0,84065.0,0.1784266]
[1744830728575,0.1189561,84066.0,84065.0,0.1784266]
[1744830729078,0.1190361,84066.0,84065.0,0.1784266]
[1744830729278,0.1190361,84066.0,84065.0,0.1664266]
[1744830729976,8e-05,84066.0,84065.0,0.1664266]
[1744830730276,0.1250317,84066.0,84065.0,0.2479266]
[1744830730884,0.14148197,84066.0,84065.0,0.2479266]
[1744830731183,0.10013027,84066.0,84065.0,0.2479266]
[1744830731384,0.10205027,84066.0,84065.0,0.2479266]
[1744830731678,0.15248092,84066.0,84065.0,0.2479266]
[1744830732184,0.1575,84069.0,84068.0,0.1189489]
[1744830732381,0.0776,84069.0,84068.0,0.1189489]
[1744830732577,0.00010801,84071.0,84070.0,0.1189461]
[1744830732978,0.005,84072.0,84071.0,0.1189447]
[1744830733672,0.00508,84072.0,84071.0,0.1966447]
[1744830734891,0.00808,84072.0,84071.0,0.1966447]
[1744830735089,0.008,84072.0,84071.0,0.1966447]
[1744830735386,0.00808,84072.0,84071.0,0.1966447]
[1744830735585,0.00010801,84079.0,84078.0,0.1189347]
[1744830735775,0.00010801,84079.0,84078.0,0.5097347]
[1744830735974,0.1575,84097.0,84096.0,0.1189093]
[1744830736175,0.2764079,84097.0,84096.0,0.1189093]
[1744830736379,0.1943079,84097.0,84096.0,0.1189093]
[1744830736576,0.2764079,84097.0,84096.0,0.1189093]
[1744830737586,0.2824079,84097.0,84096.0,0.1189093]
[1744830738684,0.17240686,84097.0,84096.0,0.1189093]
[1744830738879,0.29131476,84097.0,84096.0,0.1189093]
[1744830739778,0.1189107,84095.0,84094.0,0.0594555]
[1744830740181,0.1189192,84089.0,84088.0,0.11909814]
[1744830740590,0.0819,84094.0,84093.0,0.1189135]
[1744830740788,0.01490686,84097.0,84096.0,0.1189093]
[1744830741085,0.12781476,84097.0,84096.0,0.1189093]
[1744830741390,0.1189107,84095.0,84094.0,0.1379554]
[1744830741594,0.1189107,84095.0,84094.0,0.1479554]
[1744830742088,0.1978107,84095.0,84094.0,0.1479554]
[1744830742892,0.0789,84095.0,84094.0,0.5087554]
[1744830743085,0.00898686,84097.0,84096.0,0.1189093]
[1744830743276,0.19794561,84103.0,84096.0,0.0994546]
[1744830743477,0.19794561,84103.0,84099.0,0.118905]
[1744830743682,0.11900901,84102.0,84099.0,0.118905]
[1744830743984,0.2189036,84100.0,84099.0,0.118905]
[1744830744388,0.2189836,84100.0,84099.0,0.118905]
[1744830744786,0.1189065,84098.0,84097.0,0.1556]
[1744830744982,0.13887713,84098.0,84097.0,0.1954079]
[1744830745183,0.1189107,84095.0,84094.0,0.3608]
[1744830745382,0.0594545,84097.0,84090.0,0.0594589]
[1744830745383,0.1189164,84091.0,84090.0,0.0594589]
[1744830745597,0.1189192,84089.0,84078.0,0.059467]
[1744830745785,0.1189192,84089.0,84077.0,0.2120679]
[1744830745983,0.1189192,84089.0,84084.0,0.1189251]
[1744830746183,0.2811192,84089.0,84085.0,0.1189243]
[1744830746383,0.2811192,84089.0,84077.0,0.1526]
[1744830746584,0.1189362,84077.0,84076.0,0.3608]
[1744830746782,0.1189362,84077.0,84076.0,0.36062156]
[1744830747185,0.1189362,84077.0,84076.0,0.47955916]
[1744830747381,0.1783994,84082.0,84081.0,0.1189291]
[1744830747788,0.0594673,84079.0,84076.0,0.36062156]
[1744830747980,0.1189362,84077.0,84076.0,0.47955776]
[1744830748180,0.1199362,84077.0,84076.0,0.47955776]
[1744830748392,0.2829362,84077.0,84076.0,0.36062156]
[1744830748583,0.3584362,84077.0,84076.0,0.36062156]
[1744830749095,0.2395,84077.0,84076.0,0.47955916]
[1744830749483,0.3585162,84077.0,84076.0,0.47955916]
[1744830749788,0.3575162,84077.0,84076.0,0.47955916]
[1744830750191,0.1189404,84074.0,84073.0,0.00017844]
[1744830752290,0.4797404,84074.0,84073.0,0.00017844]
[1744830753394,0.1199404,84074.0,84073.0,0.00017844]
[1744830753585,0.4807404,84074.0,84073.0,0.00017844]
[1744830753783,0.1199404,84074.0,84073.0,0.00017844]
[1744830754595,0.1219404,84074.0,84073.0,0.00017844]
[1744830754991,0.1219404,84074.0,84073.0,1.904e-05]
[1744830755595,0.1219404,84074.0,84073.0,0.11896084]
[1744830756395,8e-05,84077.0,84074.0,0.0594695]
[1744830756694,8e-05,84077.0,84076.0,0.1189376]
[1744830756902,0.00010801,84081.0,84080.0,0.1189319]
[1744830757103,0.00010801,84081.0,84080.0,0.1289319]
[1744830757395,0.00017808,84090.0,84086.0,0.0594615]
[1744830757599,0.00017808,84090.0,84089.0,0.4797192]
[1744830757899,0.10008,84100.0,84099.0,0.118905]
[1744830758100,0.00025382,84110.0,84099.0,0.3608]
[1744830758301,0.4114,84119.0,84099.0,0.3608]
[1744830758302,0.2763815,84118.0,84117.0,0.1188796]
[1744830759003,0.1783137,84122.0,84121.0,0.1188725]
[1744830759198,0.118874,84121.0,84120.0,0.1588]
[1744830759400,0.1188824,84115.0,84114.0,0.1783211]
[1744830759597,0.1188853,84113.0,84112.0,0.1188867]
[1744830760297,0.1189653,84113.0,84112.0,0.1188867]
[1744830761303,0.1199653,84113.0,84112.0,0.1188867]
[1744830761894,0.00108,84113.0,84112.0,0.1198867]
[1744830762299,0.1199653,84113.0,84112.0,0.1198867]
[1744830762799,8e-05,84113.0,84112.0,0.1198867]
[1744830763003,0.00889375,84115.0,84114.0,0.1188838]
[1744830763204,0.1188777,84119.0,84118.0,0.1783139]
[1744830763402,0.00919549,84121.0,84120.0,0.1188754]
[1744830763798,0.12806949,84121.0,84120.0,0.1188754]
[1744830764504,0.00916748,84121.0,84120.0,0.1188754]
[1744830764703,8e-05,84121.0,84120.0,0.1288754]
[1744830764898,0.00897856,84125.0,84120.0,0.0694375]
[1744830765099,0.000159,84126.0,84125.0,0.1188683]
[1744830765299,0.00010801,84130.0,84129.0,0.1188626]